[Event "7th Sharjah Challengers 2024"]
[Site "Sharjah"]
[Date "2024.05.19"]
[Round "6.12"]
[White "Kazarian, Anna-Maja"]
[Black "Vihaan Dumir"]
[Result "1-0"]
[ECO "C16"]
[WhiteElo "2182"]
[BlackElo "1994"]
[Annotator "RC"]
[PlyCount "83"]
[EventDate "2024.05.13"]
[EventType "swiss"]
[EventCountry "UAE"]
[SourceTitle "playchess.com"]
[Source "ChessBase"]
[SourceQuality "1"]
[TimeControl "5400+30"]

1. e4 {[%emt 0:00:03]} e6 {[%emt 0:00:07]} 2. d4 {[%emt 0:00:03]} d5 {[%emt 0:00:15]} 3. Nc3 {[%emt 0:00:07]} Bb4 {[%emt 0:01:09]} 4. e5 {[%emt 0:01:14]} b6 {[%emt 0:00:11]} 5. h4 {[%emt 0:05:56]} Qd7 {[%emt 0:02:09]} 6. h5 {[%emt 0:06:03]} h6 {[%emt 0:00:27]} 7. Bd3 {[%emt 0:02:58]} Ba6 {[%emt 0:01:15]} 8. Qg4 {[%emt 0:00:30]} Bf8 {[%emt 0:00:46]} 9. Bxa6 {[%emt 0:04:46]} Nxa6 {[%emt 0:00:08]} 10. Qe2 {[%emt 0:01:00]} Nb8 {[%emt 0:00:41]} 11. f4 {[%emt 0:00:19]} c5 {[%emt 0:02:28]} 12. Nf3 {[%emt 0:00:48]} Nc6 {[%emt 0:00:33]} 13. Be3 {[%emt 0:01:02]} Nge7 {[%emt 0:06:43]} 14. g4 {[%emt 0:14:49]} cxd4 {[%emt 0:04:04]} 15. Nb5 {[%emt 0:02:30]} Nf5 {[%emt 0:23:14]} 16. gxf5 {[%emt 0:02:20]} dxe3 {[%emt 0:00:07]} 17. fxe6 {[%emt 0:00:16]} fxe6 {[%emt 0:00:08]} 18. O-O-O {[%emt 0:20:34]} Bc5 {[%emt 0:05:06]} 19. Rhg1 {[%emt 0:05:50]} O-O {[%emt 0:05:09]} 20. Rg4 {[%emt 0:01:32]} Rf7 {[%emt 0:10:34]} 21. c3 {[%emt 0:03:03]} Raf8 {[%emt 0:01:20]} 22. b4 {[%emt 0:00:22]} Be7 {[%emt 0:08:05]} 23. Rdg1 {[%emt 0:01:11]} Rc8 {[%emt 0:03:50]} 24. Kb1 {[%emt 0:02:33]} a6 {[%emt 0:05:10]} 25. Nbd4 {[%emt 0:00:31]} Nxd4 {[%emt 0:01:56]} 26. Nxd4 {[%emt 0:00:05]} Rxc3 {[%emt 0:11:48]} 27. f5 {[%emt 0:00:24]} Qa4 {[%emt 0:02:08]} 28. fxe6 {[%emt 0:03:47]} Qxb4+ {[%emt 0:00:19]} 29. Qb2 {[%emt 0:02:06]} Rf8 {[%emt 0:01:23]} 30. Qxb4 {[%emt 0:01:16]} Bxb4 {[%emt 0:00:06]} 31. Rxg7+ {[%emt 0:00:02]} Kh8 {[%emt 0:00:09]} 32. e7 {[%emt 0:02:47]} Bxe7 {[%emt 0:00:09]} 33. Rxe7 {[%emt 0:00:14]} Rd3 {[%emt 0:01:24]} 34. Ne6 {[%emt 0:03:40]} Rc8 {[%emt 0:01:52]} 35. Nf4 {[%emt 0:03:08]} Rd2 {[%emt 0:00:51]} 36. Rgg7 {[%emt 0:01:29]} Rc6 {[%emt 0:00:51]} 37. Ng6+ {[%emt 0:00:16]} Rxg6 {[%emt 0:00:07]} 38. hxg6 {[%emt 0:00:30]} Rf2 {[%emt 0:01:30]} 39. Rh7+ {[%emt 0:00:12]} Kg8 {[%emt 0:00:05]} 40. Re8+ {[%emt 0:00:49]} Rf8 {[%emt 0:00:06]} 41. Rxf8+ {[%emt 0:00:05]} Kxf8 {[%emt 0:00:07]} 42. Kc2 {[%emt 0:00:04]} 1-0